{"text_format":"3","workbook":"xlsx","n_sheets":4,"sheets":["Panel","Activos","Pasivos","cálculos"],"not_rendered":{"charts":4,"external_links":1,"defined_names":4},"read":"whole","date_system":"1900"}

{"sheet":"Panel","index":0,"n_rows":16,"n_cols":8,"rows_kept":16}
[]
[null,"PANEL",{"$nulls":4},"RESUMEN DEL PATRIMONIO NETO"," "]
{"$rows_empty":8}
[null,{"$f":"PatrimonioNeto","v":{"v":159600,"d":"159,600 €"}},null,{"$f":"ActivosTotales","v":{"v":380800,"d":"380,800 €"}},null,null,{"$f":"PasivosTotales","v":{"v":221200,"d":"221,200 €"}}]
[null,"PATRIMONIO NETO",null,"ACTIVOS TOTALES",null,null,"PASIVOS TOTALES"]
[{"$nulls":3},"EFECTIVO",null,null,"NO ASEGURADO"]
[{"$nulls":3},"INVERSIONES",null,null,"ASEGURADO"]
[{"$nulls":3},"JUBILACIÓN"]
[{"$nulls":3},"PERSONAL"]

{"sheet":"Activos","index":1,"n_rows":24,"n_cols":10,"rows_kept":24,"merged":[[11,1,12,1],[13,1,14,1],[14,2,14,4],[14,6,14,8],[25,2,25,4],[25,6,25,8]]}
[]
[null,"ACTIVOS",{"$nulls":5},"RESUMEN DEL PATRIMONIO NETO",null," "]
[]
[null,null," ","EFECTIVO","VALOR",null," ","PERSONAL","VALOR"]
[{"$nulls":3},"EFECTIVO DISPONIBLES",{"v":2000,"d":"2,000"},null,null,"RESIDENCIA PRINCIPAL",{"v":233000,"d":"233,000"}]
[{"$nulls":3},"CUENTAS CORRIENTES",{"v":2500,"d":"2,500"},null,null,"SEGUNDA RESIDENCIA"]
[{"$nulls":3},"CUENTAS DE AHORRO",{"v":4000,"d":"4,000"},null,null,"BIENES COLECCIONABLES"]
[{"$nulls":3},"CUENTAS DEL MERCADO MONETARIO",{"v":3300,"d":"3,300"},null,null,"AUTOMÓVILES",{"v":32000,"d":"32,000"}]
[{"$nulls":3},"CUENTAS DE FONDOS DEL MERCADO MONETARIO",{"v":7000,"d":"7,000"},null,null,"MOBILIARIO DEL HOGAR",{"v":10000,"d":"10,000"}]
[{"$nulls":3},"CERTIFICADOS DE DEPÓSITO",{"$nulls":3},"PIELES Y JOYERÍA"]
[{"$nulls":3},"LETRAS DEL TESORO DE EE. UU.",{"$nulls":3},"OTROS ACTIVOS",{"v":1500,"d":"1,500"}]
[null,{"$f":"ActivosTotales","v":{"v":380800,"d":"380,800 €"}},null,"VALOR EFECTIVO DEL SEGURO DE VIDA",{"v":24500,"d":"24,500"}]
[{"$nulls":3},"SUBTOTAL",{"$f":"SUBTOTAL(109,tblEfectivo[VALOR])","v":{"v":43300,"d":"43,300"}},null,null,"SUBTOTAL",{"$f":"SUBTOTAL(109,tblPersonal[VALOR])","v":{"v":276500,"d":"276,500"}}]
[null,"ACTIVOS TOTALES"]
[]
[]
[null,null," ","INVERSIONES","VALOR",null," ","JUBILACIÓN","VALOR"]
[{"$nulls":3},"ACCIONES",{"v":15000,"d":"15,000"},null,null,"PENSIÓN"]
[{"$nulls":3},"BONOS",{"$nulls":3},"CUENTAS IRA"]
[{"$nulls":3},"INVERSIONES EN FONDOS MUTUOS",{"$nulls":3},"CUENTAS KEOGH"]
[{"$nulls":3},"PARTICIPACIONES SOCIALES",{"$nulls":3},"401K",{"v":46000,"d":"46,000"}]
[{"$nulls":3},"OTRAS INVERSIONES",{"$nulls":3},"SEP"]
[{"$nulls":7},"ESOP"]
[{"$nulls":3},"SUBTOTAL",{"$f":"SUBTOTAL(109,tblInversiones[VALOR])","v":{"v":15000,"d":"15,000"}},null,null,"SUBTOTAL",{"$f":"SUBTOTAL(109,tblJubilación[VALOR])","v":{"v":46000,"d":"46,000"}}]

{"sheet":"Pasivos","index":2,"n_rows":14,"n_cols":10,"rows_kept":14,"merged":[[11,1,12,1],[13,1,14,1]]}
[]
[null,"PASIVOS",{"$nulls":5},"RESUMEN DEL PATRIMONIO NETO",null," "]
[]
[null,null," ","NO ASEGURADO","DEBE",null," ","ASEGURADO","DEBE"]
[{"$nulls":3},"TARJETAS DE CRÉDITO",{"v":1200,"d":"1,200"},null,null,"Préstamos para automóviles",{"v":14500,"d":"14,500"}]
[{"$nulls":3},"CUENTAS DE CRÉDITO",{"v":3000,"d":"3,000"},null,null,"Préstamos para vehículos recreativos"]
[{"$nulls":3},"PRÉSTAMOS PARA ESTUDIANTES",{"v":17500,"d":"17,500"},null,null,"Préstamos para electrodomésticos"]
[{"$nulls":3},"PENSIÓN ALIMENTICIA",{"$nulls":3},"Hipotecas para vivienda",{"v":144000,"d":"144,000"}]
[{"$nulls":3},"MANUTENCIÓN DE LOS HIJOS",{"$nulls":3},"Préstamo garantizado con el valor residual de la vivienda",{"v":21000,"d":"21,000"}]
[{"$nulls":3},"DEUDA TRIBUTARIA",{"v":8000,"d":"8,000"},null,null,"Otros préstamos"]
[{"$nulls":3},"OTROS",{"v":6000,"d":"6,000"},null,null,"Deuda tributaria",{"v":4000,"d":"4,000"}]
[null,{"$f":"PasivosTotales","v":{"v":221200,"d":"221,200 €"}},{"$nulls":5},"Otros",{"v":2000,"d":"2,000"}]
[{"$nulls":3},"SUBTOTAL",{"$f":"SUBTOTAL(109,tblNoAsegurado[DEBE])","v":{"v":35700,"d":"35,700"}},null,null,"SUBTOTAL",{"$f":"SUBTOTAL(109,tblAsegurado[DEBE])","v":{"v":185500,"d":"185,500"}}]
[null,"ACTIVOS TOTALES"]

{"sheet":"cálculos","index":3,"n_rows":23,"n_cols":3,"rows_kept":23,"hidden":true}
[]
[null,"*** Esta hoja debe permanecer oculta ***"]
{"$rows_empty":8}
[null,{"$f":"tblEfectivo[[#Headers],[EFECTIVO]]","v":"EFECTIVO"},{"$f":"SUM(tblEfectivo[VALOR])","v":{"v":43300,"d":"$43,300"}}]
[null,{"$f":"tblInversiones[[#Headers],[INVERSIONES]]","v":"INVERSIONES"},{"$f":"SUM(tblInversiones[VALOR])","v":{"v":15000,"d":"$15,000"}}]
[null,{"$f":"tblJubilación[[#Headers],[JUBILACIÓN]]","v":"JUBILACIÓN"},{"$f":"SUM(tblJubilación[VALOR])","v":{"v":46000,"d":"$46,000"}}]
[null,{"$f":"tblPersonal[[#Headers],[PERSONAL]]","v":"PERSONAL"},{"$f":"SUM(Activos!I5:I11)","v":{"v":276500,"d":"$276,500"}}]
[null,"Activos totales",{"$f":"SUM(tblEfectivo[VALOR],tblInversiones[VALOR],tblJubilación[VALOR],tblPersonal[VALOR])","v":{"v":380800,"d":"$380,800"}}]
[]
[]
[null,{"$f":"tblNoAsegurado[[#Headers],[NO ASEGURADO]]","v":"NO ASEGURADO"},{"$f":"SUM(tblNoAsegurado[DEBE])","v":{"v":35700,"d":"$35,700"}}]
[null,{"$f":"tblAsegurado[[#Headers],[ASEGURADO]]","v":"ASEGURADO"},{"$f":"SUM(tblAsegurado[DEBE])","v":{"v":185500,"d":"$185,500"}}]
[null,"Pasivos totales",{"$f":"SUM(tblNoAsegurado[DEBE],tblAsegurado[DEBE])","v":{"v":221200,"d":"$221,200"}}]
[]
[]
[null,"Patrimonio neto",{"$f":"C15-C20","v":{"v":159600,"d":"$159,600"}}]